bitfinex/quotes_ETHUSD_20240711
["timestamp","ask_amount","ask_price","bid_price","bid_amount"]
[1720670752897,0.6794123,3084.5,3084.4,0.798]
[1720670753498,0.6794123,3084.6,3084.4,0.798]
[1720670753708,0.6794123,3084.6,3084.5,1.435546]
[1720670754128,0.6794123,3084.7,3084.5,1.435546]
[1720670755129,0.6794123,3084.8,3084.5,1.435546]
[1720670755324,0.6794123,3084.8,3084.7,0.798]
[1720670756428,0.6794123,3084.9,3084.7,0.798]
[1720670756600,0.6794123,3084.9,3084.8,0.798]
[1720670757131,0.6794123,3085.0,3084.8,3.09]
[1720670757340,0.6794123,3085.2,3084.9,3.309]
[1720670757496,0.6794123,3085.4,3085.1,0.798]
[1720670757695,0.6794123,3085.4,3085.3,0.798]
[1720670758406,0.6794123,3085.5,3085.3,0.798]
[1720670758727,0.6794123,3085.5,3085.4,0.798]
[1720670759628,0.6794123,3085.6,3085.4,0.798]
[1720670759932,0.6794123,3085.6,3085.5,0.798]
[1720670762240,0.6794123,3085.7,3085.5,0.798]
[1720670762529,0.6794123,3085.7,3085.6,0.798]
[1720670763426,3.55300103,3086.0,3085.6,0.798]
[1720670763427,2.8729123,3086.0,3085.6,0.798]
[1720670763628,0.6794123,3086.0,3085.8,0.798]
[1720670763832,0.6794123,3086.1,3085.8,0.798]
[1720670764038,0.6794123,3086.1,3086.0,0.798]
[1720670764193,2.1935,3086.2,3086.0,0.798]
[1720670764194,2.8729123,3086.2,3086.0,0.798]
[1720670765153,0.6794123,3086.1,3086.0,0.798]
[1720670765517,3.21272777,3086.2,3086.0,0.798]
[1720670765736,1.01922777,3086.1,3086.0,0.798]
[1720670766053,2.59952438,3086.1,3085.2,2.3661]
[1720670766217,0.67658646,3086.0,3085.9,0.798]
[1720670766412,0.67658073,3086.0,3085.9,0.798]
[1720670766618,1.47645065,3086.1,3085.9,0.798]
[1720670766818,0.67658621,3086.0,3085.9,0.798]
[1720670767319,1.7996606,3086.0,3085.9,0.798]
[1720670767625,2.1935,3086.2,3085.9,0.798]
[1720670767829,0.67648228,3086.0,3085.9,0.798]
[1720670768265,0.67648957,3086.0,3085.9,0.798]
[1720670768553,1.79956696,3086.0,3085.9,0.798]
[1720670770315,0.67648957,3086.2,3085.9,0.798]
[1720670770630,0.67648957,3086.5,3086.1,0.798]
[1720670770966,0.67648957,3086.6,3086.4,0.798]
[1720670771132,1.12284538,3086.5,3086.4,0.798]
[1720670771310,0.99731301,3086.6,3086.4,0.798]
[1720670771311,0.32082344,3086.6,3086.4,0.798]
[1720670771751,0.09001601,3086.5,3086.4,0.798]
[1720670772724,0.09011598,3086.5,3086.4,0.798]
[1720670773119,0.67648957,3086.8,3086.4,0.798]
[1720670773320,0.46912239,3086.8,3086.7,0.798]
[1720670773521,1.59193197,3086.8,3086.7,0.798]
[1720670774452,1.1228005,3086.8,3086.7,0.798]
[1720670774653,0.67648957,3087.0,3086.7,0.798]
[1720670774859,1.12276694,3086.9,3086.0,2.3468]
[1720670775042,2.53294302,3087.1,3086.8,0.798]
[1720670775043,3.20943259,3087.1,3086.8,0.798]
[1720670775355,1.12274047,3087.0,3086.0,2.3468]
[1720670775544,0.67648957,3087.2,3085.9,3.0]
[1720670775545,2.86998957,3087.4,3087.0,0.798]
[1720670775858,2.1935,3087.4,3087.3,0.798]
[1720670776046,3.31610113,3087.4,3087.3,0.798]
[1720670776546,3.31610113,3087.4,3086.6,1.909]
[1720670776717,2.1935,3087.4,3086.6,1.909]
[1720670776918,1.34193092,3087.3,3086.6,1.909]
[1720670777114,0.67648957,3087.6,3087.0,1.909]
[1720670777333,0.67648957,3088.1,3087.4,1.909]
[1720670777532,1.79888876,3088.0,3087.4,1.909]
[1720670777743,1.79892551,3087.9,3087.4,1.909]
[1720670777966,1.12243594,3087.8,3087.4,1.909]
[1720670778171,0.17989255,3087.7,3087.4,1.909]
[1720670778325,1.12243594,3087.6,3087.0,8.646]
[1720670778653,1.2034235,3087.6,3087.0,6.737]
[1720670778857,1.12243594,3087.5,3087.0,6.737]
[1720670779029,0.82243594,3087.5,3087.0,6.737]
[1720670780824,0.08098756,3087.6,3087.0,6.737]
[1720670781252,0.85638212,3087.7,3087.0,6.737]
[1720670781560,0.1952104,3087.6,3087.0,6.737]
[1720670781765,0.67648957,3087.7,3087.0,6.737]
[1720670782359,0.67648957,3087.7,3086.6,8.646]
[1720670782560,0.67648957,3087.7,3086.6,1.909]
[1720670782857,0.75748001,3087.7,3086.6,1.909]
[1720670783463,0.67648957,3087.7,3086.6,1.909]
[1720670783669,0.67648957,3087.7,3086.6,2.3999]
[1720670783959,0.67648957,3087.8,3087.0,1.909]
[1720670784124,1.01473435,3087.9,3087.4,0.2]
[1720670784125,0.67648957,3087.9,3087.4,0.2]
[1720670784629,0.75747203,3087.9,3087.4,0.2]
[1720670784831,0.2950972,3087.8,3087.4,0.2]
[1720670785056,0.75746795,3088.0,3087.4,0.2]
[1720670785226,0.08097838,3087.7,3087.4,0.2]
[1720670785426,0.08098921,3087.6,3087.4,0.2]
[1720670786564,0.08098942,3087.5,3087.4,0.2]
[1720670786765,0.16861609,3087.5,3087.4,0.2]
[1720670786923,0.64112855,3087.5,3087.4,0.2]
[1720670787329,1.6538465,3087.5,3087.4,0.2]
[1720670787884,1.57285708,3087.5,3087.4,0.2]
[1720670788234,0.56013913,3087.5,3087.4,0.4]
[1720670788469,1.57285708,3087.5,3087.4,0.4]
[1720670788847,1.23570245,3087.5,3087.4,0.4]
[1720670789045,1.68271983,3087.5,3087.4,0.4]
[1720670789544,2.35828315,3087.5,3087.4,0.4]
[1720670790793,1.23570245,3087.5,3087.4,0.4]
[1720670790977,1.21016459,3087.5,3087.4,0.4]
[1720670792233,1.21016459,3087.5,3087.4,0.6]
[1720670792656,1.88620412,3087.5,3087.4,0.6]
[1720670793032,1.21016459,3087.5,3087.4,0.6]
[1720670794273,0.08762667,3087.5,3087.4,0.6]
[1720670794677,0.67603953,3087.7,3087.4,0.6]
[1720670794985,1.12245693,3087.6,3087.4,0.6]
[1720670795143,0.08760874,3087.6,3087.4,0.6]
[1720670796190,1.12248554,3087.5,3087.4,0.6]
[1720670796398,1.12248554,3087.5,3087.4,0.8]
[1720670796575,1.21009428,3087.5,3087.4,0.8]
[1720670797000,0.08760874,3087.5,3087.4,0.8]
[1720670797183,1.21008083,3087.5,3087.4,0.8]
[1720670797385,2.10059382,3087.5,3087.4,0.8]
[1720670797685,2.10063583,3087.5,3087.4,0.8]
[1720670798565,1.4245963,3087.5,3087.4,0.8]
[1720670798903,1.4245963,3087.5,3087.4,1.595]
[1720670799197,2.10155085,3087.5,3087.4,1.595]
[1720670799585,1.4245963,3087.5,3087.4,1.595]
[1720670799791,2.10171724,3087.5,3087.4,1.595]
[1720670800478,1.21012284,3087.5,3087.4,4.0907]
[1720670800806,0.08760874,3087.5,3087.4,4.0907]
[1720670801172,0.67724211,3087.9,3087.4,4.0907]
[1720670801486,0.67724211,3087.9,3087.4,3.2957]
[1720670801487,0.08773424,3087.5,3087.4,3.2957]
[1720670801688,0.67724211,3087.9,3087.4,4.0907]
[1720670801864,0.08773424,3087.5,3087.4,3.2957]
[1720670802202,0.08773424,3087.5,3087.4,4.0907]
[1720670802406,0.67724211,3087.8,3087.4,4.0907]
[1720670802566,0.08778034,3087.5,3087.4,3.2957]
[1720670802768,0.67724211,3087.9,3087.4,4.42027]
[1720670803002,0.0877829,3087.5,3087.4,3.62527]
[1720670803213,0.67724211,3088.0,3087.4,4.42027]
[1720670803410,1.1222545,3087.9,3087.4,3.62527]
[1720670803621,0.08781107,3087.9,3087.8,0.795]
[1720670803918,0.08781107,3087.9,3087.8,3.1899]
[1720670804073,1.21004352,3087.9,3087.8,3.1899]
[1720670804520,1.21003699,3087.9,3087.8,3.1899]
[1720670804813,1.21003699,3087.9,3087.8,2.3949]
[1720670805571,1.21003699,3087.9,3087.8,2.82509]
[1720670805917,0.08781107,3087.9,3087.8,2.82509]
[1720670806215,0.67724211,3088.4,3087.8,2.82509]
[1720670806395,0.08509403,3087.9,3087.8,2.82509]
[1720670806600,0.67724211,3088.4,3087.8,4.73209]
[1720670806795,1.12208522,3088.3,3087.9,3.473209]
[1720670806998,0.67724211,3088.6,3088.3,1.907]
[1720670807178,1.20298966,3088.5,3088.3,1.907]
[1720670807378,1.12203752,3088.4,3088.0,2.4723]
[1720670807622,0.67724211,3088.5,3088.0,2.4723]
[1720670807779,0.67724211,3088.2,3088.0,2.4723]
[1720670809181,0.67724211,3088.3,3088.0,2.4723]
[1720670810018,1.01271795,3088.4,3088.0,2.4723]
[1720670810019,0.67724211,3088.2,3088.0,2.4723]
[1720670810214,0.67724211,3088.3,3088.0,2.4723]
[1720670810391,0.67724211,3088.2,3088.0,2.4723]
[1720670810717,1.79944561,3088.1,3087.9,1.907]
[1720670811012,1.03925647,3088.1,3087.6,2.3175]
[1720670811178,0.67707828,3087.8,3087.5,1.907]
[1720670811377,0.08097194,3087.7,3087.5,1.907]
[1720670811579,0.67707828,3087.8,3087.5,1.907]
[1720670811580,0.75805021,3087.8,3087.5,1.907]
[1720670811817,0.08097193,3087.7,3087.5,1.907]
[1720670812020,0.67707828,3087.7,3087.5,1.907]
[1720670812227,0.67707828,3087.6,3087.5,1.907]
[1720670812524,1.12240199,3087.6,3087.5,1.907]
[1720670812683,0.67749782,3087.6,3087.5,1.907]
[1720670812882,1.12240319,3087.6,3087.5,1.907]
[1720670813214,2.13802061,3087.6,3087.5,1.907]
[1720670813580,1.12240046,3087.6,3087.5,1.907]
[1720670813912,0.67769658,3087.6,3087.5,1.907]
[1720670814104,0.76287509,3087.6,3087.5,1.907]
[1720670814696,0.08517851,3087.6,3087.5,1.907]
[1720670815428,0.76287509,3087.6,3087.5,1.907]
[1720670815593,0.08517851,3087.6,3087.5,1.907]
[1720670815991,0.76287509,3087.6,3087.5,1.907]
[1720670816205,1.10175441,3087.6,3087.5,1.907]
[1720670816411,1.55339913,3087.6,3087.5,1.907]
[1720670816622,2.67581034,3087.6,3087.5,1.907]
[1720670817727,1.10313973,3087.6,3087.5,1.907]
[1720670818081,0.19796113,3087.6,3087.5,1.907]
[1720670818814,0.08517851,3087.6,3087.5,1.907]
[1720670819136,0.08517851,3087.6,3087.4,1.0]
[1720670819137,1.53260683,3087.6,3087.4,1.0]
[1720670819302,1.12241694,3087.5,3087.4,1.0]
[1720670819504,1.23520049,3087.5,3087.4,1.0]
[1720670819706,2.56556637,3087.5,3087.4,1.0]
[1720670819905,2.67834992,3087.5,3087.4,1.0]
[1720670820412,1.75788572,3087.5,3087.4,1.0]
[1720670820725,3.45570434,3087.5,3087.4,1.0]
[1720670821353,3.45594306,3087.5,3087.4,1.0]
[1720670821736,1.75792516,3087.5,3087.4,1.0]
[1720670823461,0.71644855,3087.5,3087.4,1.0]
[1720670823665,1.40141769,3087.5,3087.4,1.0]
[1720670824038,1.78224273,3087.5,3087.4,1.0]
[1720670824240,1.70126296,3087.5,3087.4,1.0]
[1720670825452,1.32043792,3087.5,3087.4,1.0]
[1720670826081,1.70124732,3087.5,3087.4,1.0]
[1720670826389,1.32043792,3087.5,3087.4,1.0]
[1720670826884,0.19796206,3087.5,3087.4,1.0]
[1720670827036,1.32045438,3087.5,3087.4,1.0]
[1720670827872,1.7013185,3087.5,3087.4,1.0]
[1720670828077,4.11343122,3087.5,3087.4,1.0]
[1720670828244,3.73948293,3087.5,3087.4,1.0]
[1720670828468,1.7013185,3087.5,3087.4,1.0]
[1720670828895,1.20767083,3087.5,3087.4,1.0]
[1720670829093,1.7013185,3087.5,3087.4,1.0]
[1720670829269,2.11733438,3087.5,3087.4,1.0]
[1720670830581,2.11733438,3087.5,3087.1,1.907]
[1720670830781,3.73573845,3087.4,3087.1,1.907]
[1720670830996,1.61613999,3087.3,3087.1,1.907]
[1720670831172,0.11278355,3087.2,3087.1,1.907]
[1720670831378,1.23527587,3087.2,3087.1,1.907]
[1720670831591,1.32017016,3087.2,3087.1,1.907]
[1720670831802,1.32017016,3087.2,3086.7,4.3046]
[1720670832109,1.01928516,3086.8,3086.7,4.3046]
[1720670832313,1.01928516,3086.8,3086.7,7.3046]
[1720670832474,1.10413848,3086.8,3086.7,7.3046]
[1720670832675,1.10413848,3086.8,3086.7,6.1926]
[1720670832982,1.10413848,3086.8,3086.7,7.48556]
[1720670833529,0.08485332,3086.8,3086.7,7.48556]
[1720670833828,0.67958216,3087.0,3086.8,2.4905]
[1720670834035,0.67958216,3087.0,3086.9,0.795]
[1720670834338,0.08479953,3087.0,3086.9,3.829446]
[1720670834694,0.76444014,3087.0,3086.9,6.829446]
[1720670836695,0.76444014,3087.0,3086.9,7.942446]
[1720670837091,0.67964061,3087.0,3086.9,7.942446]
[1720670837328,0.76451185,3087.0,3086.9,7.942446]
[1720670837649,0.08487124,3087.0,3086.9,7.942446]
[1720670838605,0.67976574,3087.2,3087.0,2.2845]
[1720670838807,1.01928516,3087.3,3087.1,0.7950346]
[1720670839333,1.01928516,3087.2,3087.1,3.7950346]
[1720670839536,0.67978677,3087.2,3087.1,5.7030346]
[1720670839728,1.01928516,3087.2,3087.1,5.7030346]
[1720670841832,1.35904688,3087.3,3087.1,5.7030346]
[1720670842229,2.48148659,3087.2,3087.1,5.7030346]
[1720670842430,1.23522968,3087.2,3087.1,5.7030346]
[1720670842732,0.11278997,3087.2,3087.1,5.7030346]
[1720670843243,1.01979503,3087.2,3087.1,5.7030346]
[1720670843406,1.01979503,3087.2,3087.1,5.9030346]
[1720670843828,1.01984127,3087.2,3087.1,5.9030346]
[1720670844038,1.10479703,3087.2,3087.1,5.9030346]
[1720670844248,1.01983242,3087.2,3087.1,5.9030346]
[1720670844518,1.1047933,3087.2,3087.1,5.9030346]
[1720670845333,2.67997698,3087.2,3087.1,5.9030346]
[1720670845517,0.19775214,3087.2,3087.1,5.9030346]
[1720670845921,1.10490354,3087.2,3087.1,5.9030346]
[1720670846120,0.19774941,3087.2,3087.1,5.9030346]
[1720670847447,0.19774941,3087.2,3087.1,6.1030346]
[1720670848172,1.55752597,3087.2,3087.1,5.308]
[1720670848368,2.67996945,3087.2,3087.1,5.308]
[1720670850043,0.19774941,3087.2,3087.1,5.308]
[1720670850573,1.55752597,3087.2,3087.1,5.308]
[1720670850948,2.67996878,3087.2,3087.1,5.308]
[1720670851144,1.32019222,3087.2,3087.1,5.308]
[1720670851349,3.02027016,3087.2,3087.1,5.308]
[1720670851765,1.32019222,3087.2,3087.1,5.308]
[1720670851963,3.02027016,3087.2,3087.1,5.308]
[1720670852575,1.32019222,3087.2,3087.1,5.308]
[1720670853132,3.02027016,3087.2,3087.1,5.308]
[1720670853746,1.89896497,3087.2,3087.1,5.308]
[1720670853959,3.0214455,3087.2,3087.1,5.308]
[1720670855238,1.32022994,3087.2,3087.1,5.308]
[1720670855741,2.90934099,3087.2,3087.1,5.308]
[1720670855939,3.02212952,3087.2,3087.1,5.308]
[1720670856176,1.70903742,3087.2,3087.1,2.308]
[1720670856387,2.08408703,3087.2,3087.1,0.4]
[1720670856537,4.07698134,3087.2,3087.1,0.4]
[1720670856749,2.16507976,3087.2,3087.1,0.4]
[1720670857157,2.16529223,3087.2,3087.1,0.4]
[1720670858768,4.2777995,3087.2,3087.1,0.4]
[1720670858976,5.15208027,3087.2,3087.1,0.36000001]
[1720670859176,8.57408027,3087.2,3087.1,0.36000001]
[1720670860513,8.57427014,3087.2,3087.1,0.36000001]
[1720670861369,8.57427014,3087.2,3087.1,1.15500001]
[1720670861370,4.12478889,3087.2,3087.1,1.15500001]
[1720670861675,2.08448937,3087.2,3087.1,1.15500001]
[1720670862569,2.08448937,3087.2,3087.1,0.36000001]
[1720670863618,0.9616065,3087.2,3087.1,0.36000001]
[1720670863810,3.24753744,3087.2,3087.1,0.36000001]
[1720670864122,3.74913345,3087.2,3087.1,0.36000001]
[1720670864321,3.74913345,3087.2,3087.1,2.71480001]
[1720670864539,1.3203553,3087.2,3087.1,2.71480001]
[1720670865025,1.78479612,3087.2,3087.1,2.71480001]
[1720670865324,1.89758465,3087.2,3087.1,2.71480001]
[1720670867089,1.89764648,3087.2,3087.1,2.71480001]
[1720670868203,1.55766886,3087.2,3087.1,2.71480001]
[1720670870137,1.55766886,3087.2,3087.1,5.98628001]
[1720670870302,1.10479285,3087.2,3087.1,5.98628001]
[1720670870709,0.08496088,3087.2,3087.1,5.98628001]
[1720670871017,1.01983197,3087.3,3087.1,5.98628001]
[1720670871204,1.01983197,3087.3,3087.2,1.909]
[1720670871710,1.01983197,3087.3,3087.2,2.4658952]
[1720670872292,1.35991945,3087.4,3087.2,2.4658952]
[1720670873236,1.0197162,3087.3,3087.2,2.4658952]
[1720670874120,1.0197162,3087.3,3087.2,7.8753952]
[1720670874326,2.1935,3088.4,3087.2,5.4658952]
[1720670874519,1.8935,3088.4,3087.6,1.909]
[1720670874835,0.3254,3089.1,3087.7,2.4095]
[1720670874994,3.418,3088.9,3087.7,2.4095]
[1720670875315,6.4203546,3088.7,3087.7,2.4095]
[1720670875515,9.8383546,3088.7,3087.7,2.4095]
[1720670875928,6.8383546,3088.7,3087.7,2.4095]
[1720670876139,1.69925057,3087.8,3087.7,2.4095]
[1720670876431,0.68383546,3088.6,3087.7,2.4095]
[1720670876725,0.08226837,3087.8,3087.7,2.4095]
[1720670876931,0.08096662,3088.8,3087.7,2.4095]
[1720670877230,2.47008798,3088.7,3087.7,2.4095]
[1720670877426,2.47008798,3088.6,3087.7,2.4095]
[1720670877632,2.47008798,3088.5,3087.7,2.4095]
[1720670877834,2.47008798,3088.4,3087.7,2.4095]
[1720670878132,2.47008798,3088.3,3087.7,2.4095]
[1720670878331,2.47008798,3088.2,3087.7,2.4095]
[1720670878515,1.34790141,3088.1,3087.7,2.4095]
[1720670878737,1.34790141,3088.0,3087.7,2.4095]
[1720670879038,0.87178666,3088.7,3087.7,2.4095]
[1720670879240,0.08236345,3087.9,3087.7,2.4095]
[1720670879408,0.91832867,3088.6,3087.7,2.4095]
[1720670879615,0.08236345,3087.8,3087.7,2.4095]
[1720670879809,0.91832867,3088.6,3087.7,2.4095]
[1720670880030,0.08236345,3087.8,3087.7,2.4095]
[1720670880322,0.3254,3088.9,3087.8,2.3738]
[1720670880512,2.46995847,3088.8,3088.3,1.909]
[1720670880717,2.46995847,3088.7,3088.3,4.2828]
[1720670881019,2.55233992,3088.6,3088.3,4.2828]
[1720670881329,1.358262,3088.4,3088.3,4.2828]
[1720670881543,2.70610049,3088.4,3088.3,4.2828]
[1720670881851,2.78848194,3088.4,3088.3,4.2828]
[1720670882023,1.44064345,3088.4,3088.3,4.2828]
[1720670882211,2.7884149,3088.4,3088.3,4.2828]
[1720670882616,1.44064345,3088.4,3088.3,3.1688]
[1720670882859,0.08238145,3088.4,3088.3,3.1688]
[1720670883535,1.44064345,3088.4,3088.3,3.1688]
[1720670883933,0.08238145,3088.4,3088.3,3.1688]
[1720670884127,1.44064345,3088.4,3088.3,3.1688]
[1720670884370,2.78844628,3088.4,3088.3,3.1688]
[1720670884573,1.44064345,3088.4,3088.3,3.1688]
[1720670885033,1.1000711,3088.4,3088.3,3.1688]
[1720670885656,0.08238145,3088.4,3088.3,3.1688]
[1720670886171,1.1000711,3088.4,3088.3,3.1688]
[1720670886499,0.08238145,3088.4,3088.3,3.48568]
[1720670886853,0.67826492,3088.6,3088.3,3.48568]
[1720670887200,0.67826492,3088.6,3088.5,0.795]
[1720670887490,0.67826492,3088.7,3088.5,0.795]
[1720670887694,0.67826492,3088.7,3088.6,0.795]
[1720670888050,1.01768965,3088.8,3088.6,0.795]
[1720670888245,0.67783016,3088.7,3088.6,0.795]
[1720670889692,0.67783016,3088.8,3088.6,0.795]
[1720670889889,1.01768965,3088.9,3088.7,0.795]
[1720670891593,0.75690339,3088.8,3088.7,0.795]
[1720670892282,0.0797099,3088.8,3088.7,0.795]
[1720670894398,1.20169421,3088.8,3088.7,0.795]
[1720670894614,0.75662684,3088.8,3088.7,0.795]
[1720670895118,0.75663119,3088.8,3088.7,0.795]
[1720670895320,1.8786094,3088.8,3088.7,0.795]
[1720670895813,1.20168811,3088.8,3088.7,0.795]
[1720670896112,1.20170137,3088.8,3088.7,0.795]
[1720670896348,1.87855295,3088.8,3088.7,3.1949]
[1720670896644,1.87854092,3088.8,3088.7,3.1949]
[1720670898717,1.87853788,3088.8,3088.7,3.1949]
[1720670899441,0.75656148,3088.8,3088.7,3.1949]
[1720670899954,1.87853788,3088.8,3088.7,3.1949]
[1720670902452,1.87853788,3088.8,3088.7,0.795]
[1720670902844,0.0797099,3088.8,3088.7,0.795]
[1720670903044,1.79856954,3088.8,3088.7,0.795]
[1720670903337,1.8783462,3088.8,3088.7,0.795]
[1720670905657,1.20176654,3088.8,3088.7,0.795]
[1720670905832,1.87886111,3088.8,3088.7,0.795]
[1720670906037,2.21663604,3088.8,3088.5,2.3166]
[1720670906373,0.67712655,3088.6,3088.5,2.3166]
[1720670906525,1.79915037,3088.6,3088.5,3.1116]
[1720670906834,1.87726037,3088.6,3088.5,3.1116]
[1720670907436,1.20013382,3088.6,3088.5,3.1116]
[1720670907849,1.20013382,3088.6,3088.3,0.4]
[1720670908020,1.0929795,3088.6,3088.5,0.795]
[1720670908223,1.20016836,3088.6,3088.5,0.795]
[1720670908661,2.2171993,3088.6,3088.5,0.795]
[1720670908896,1.20016836,3088.6,3088.5,0.795]
[1720670909287,2.55332769,3088.6,3088.5,0.795]
[1720670909786,2.55329788,3088.6,3088.5,0.795]
[1720670910401,3.90105056,3088.6,3088.5,0.795]
[1720670910767,2.54789123,3088.6,3088.5,0.795]
[1720670910977,3.90505801,3088.6,3088.5,0.795]
[1720670911177,2.55730533,3088.6,3088.5,0.795]
[1720670911395,3.90502562,3088.6,3088.5,0.795]
[1720670912106,1.20013855,3088.6,3088.5,3.2441]
[1720670913187,1.20007486,3088.6,3088.5,3.2441]
[1720670913607,2.21868751,3088.6,3088.5,3.2441]
[1720670913900,1.20007486,3088.6,3088.5,3.2441]
[1720670915399,3.90489968,3088.6,3088.5,3.2441]
[1720670915608,3.60489968,3088.6,3088.5,3.2441]
[1720670915903,3.68039831,3088.6,3088.5,3.60851]
[1720670916105,0.97557349,3088.6,3088.5,3.60851]
[1720670916306,3.6804001,3088.6,3088.5,3.60851]
[1720670916613,2.7823977,3088.6,3088.5,3.60851]
[1720670918398,1.42315408,3088.6,3088.5,3.60851]
[1720670919385,3.12220861,3088.6,3088.5,3.60851]
[1720670920130,3.12404608,3088.6,3088.5,3.60851]
[1720670921800,3.12408981,3088.6,3088.5,3.2441]
[1720670922628,1.42315332,3088.6,3088.5,3.2441]
[1720670923322,1.42318393,3088.6,3088.5,3.2441]
[1720670924420,1.42318393,3088.6,3088.5,3.4441]
[1720670924621,3.12498182,3088.6,3088.5,3.4441]
[1720670924927,1.42318393,3088.6,3088.5,3.4441]
[1720670925525,2.83309441,3088.6,3088.5,3.4441]
[1720670926035,2.83308054,3088.6,3088.5,3.4441]
[1720670926328,2.54513291,3088.6,3088.5,3.4441]
[1720670926729,2.54511721,3088.6,3088.5,3.4441]
[1720670928089,2.83735808,3088.6,3088.5,0.995]
[1720670928295,4.88018431,3088.6,3088.5,1.195]
[1720670929732,7.26170274,3088.6,3088.5,0.4]
[1720670930055,7.70664095,3088.6,3088.5,0.4]
[1720670930211,5.21935242,3088.6,3088.5,0.4]
[1720670930405,8.03576187,3088.6,3088.5,0.4]
[1720670930833,8.82915848,3088.6,3088.5,0.4]
[1720670931546,6.01274903,3088.6,3088.5,0.4]
[1720670931704,5.21935242,3088.6,3088.5,0.4]
[1720670931911,5.21935242,3088.6,3088.5,1.195]
[1720670932211,5.21935242,3088.6,3088.5,2.196]
[1720670932411,5.21935242,3088.6,3088.5,2.396]
[1720670933441,2.74925793,3088.6,3088.5,2.396]
[1720670933610,4.73131943,3088.6,3088.5,2.396]
[1720670933846,0.3677395,3088.6,3088.5,2.396]
[1720670934184,1.4898427,3088.6,3088.5,2.396]
[1720670936250,1.48979513,3088.6,3088.5,2.396]
[1720670936479,0.3677395,3088.6,3088.5,2.396]
[1720670936659,2.11692094,3088.6,3088.5,2.396]
[1720670936873,0.07549863,3088.6,3088.5,2.596]
[1720670937052,3.16348051,3088.6,3088.5,2.596]
[1720670937381,3.52865871,3088.6,3088.5,2.596]
[1720670937594,1.48721953,3088.6,3088.5,2.596]
[1720670937997,3.23640521,3088.6,3088.5,2.596]
[1720670938205,3.52864608,3088.6,3088.5,2.596]
[1720670939310,1.48721953,3088.6,3088.5,2.596]
[1720670939513,3.2364106,3088.6,3088.5,2.596]
[1720670939798,3.52865147,3088.6,3088.5,2.596]
[1720670940436,3.52859485,3088.6,3088.5,2.596]
[1720670940590,3.52859941,3088.6,3088.5,2.596]
[1720670940789,3.52859941,3088.6,3088.5,2.796]
[1720670942004,3.52859941,3088.6,3088.5,2.001]
[1720670942172,3.52859941,3088.6,3088.5,2.796]
[1720670942877,0.3651782,3088.6,3088.5,2.796]
[1720670943079,2.11424333,3088.6,3088.5,2.796]
[1720670943374,1.19495785,3088.6,3088.5,2.796]
[1720670943573,1.48719872,3088.6,3088.5,2.796]
[1720670944508,3.86872239,3088.6,3088.5,2.796]
[1720670945390,1.48719872,3088.6,3088.5,2.796]
[1720670945778,3.86872239,3088.6,3088.5,2.796]
[1720670946173,0.3651782,3088.6,3088.5,2.796]
[1720670946400,3.57664184,3088.6,3088.5,2.796]
[1720670946596,4.41589689,3088.6,3088.5,2.796]
[1720670947183,2.03432694,3088.6,3088.5,2.796]
[1720670947697,4.41589689,3088.6,3088.5,2.796]
[1720670948218,2.03432694,3088.6,3088.5,2.796]
[1720670948384,2.11527869,3088.6,3088.5,2.001]
[1720670948579,2.03432694,3088.6,3088.5,2.001]
[1720670949501,0.91219238,3088.6,3088.5,2.001]
[1720670949893,2.03440977,3088.6,3088.5,2.001]
[1720670950752,4.1230548,3088.6,3088.5,2.001]
[1720670950924,4.41529567,3088.6,3088.5,2.001]
[1720670951595,2.03440977,3088.6,3088.5,2.001]
[1720670952193,4.41529567,3088.6,3088.5,2.001]
[1720670952890,4.41506188,3088.6,3088.5,2.001]
[1720670954107,6.30856188,3088.6,3088.5,2.001]
[1720670954434,6.30852058,3088.6,3088.5,2.001]
[1720670954804,4.41502058,3088.6,3088.5,2.001]
[1720670955842,2.03440977,3088.6,3088.5,2.001]
[1720670956047,4.41502058,3088.6,3088.5,2.001]
[1720670956218,0.91219238,3088.6,3088.5,2.001]
[1720670956537,0.3651782,3088.6,3088.5,2.001]
[1720670956701,1.48736601,3088.6,3088.5,2.001]
[1720670956904,3.86771366,3088.6,3088.5,2.001]
[1720670957114,1.48736601,3088.6,3088.5,2.001]
[1720670958956,1.48736601,3088.6,3088.5,4.426]
[1720670959250,1.48736601,3088.6,3088.5,2.001]
[1720670959414,1.48736601,3088.6,3088.5,2.796]
[1720670959759,1.48729842,3088.6,3088.5,2.796]
[1720670959924,1.48730321,3088.6,3088.5,2.796]
[1720670960265,0.3651782,3088.6,3088.5,2.796]
[1720670960958,1.48729197,3088.6,3088.5,2.796]
[1720670961112,1.87402866,3088.6,3088.5,2.796]
[1720670961511,4.2541036,3088.6,3088.5,2.001]
[1720670962046,3.76752866,3088.6,3088.5,2.001]
[1720670962555,0.75191489,3088.6,3088.5,2.001]
[1720670962914,1.87410302,3088.6,3088.5,2.001]
[1720670963136,1.87410035,3088.6,3088.5,2.001]
[1720670963316,1.87409947,3088.6,3088.5,2.001]
[1720670966538,0.75191489,3088.6,3088.5,2.001]
[1720670967161,1.87410777,3088.6,3088.5,2.001]
[1720670967950,4.68633184,3088.6,3088.5,2.001]
[1720670968258,1.87410777,3088.6,3088.5,3.001]
[1720670969258,8.10433184,3088.6,3088.5,3.001]
[1720670969576,5.84210777,3088.6,3088.5,3.001]
[1720670969776,8.65484795,3088.6,3088.5,3.001]
[1720670969995,7.71991489,3088.6,3088.5,3.001]
[1720670970151,9.97712648,3088.6,3088.5,3.001]
[1720670970849,11.87062648,3088.6,3088.5,3.001]
[1720670971195,14.91001271,3088.6,3088.5,2.201]
[1720670971376,11.64098097,3088.6,3088.5,2.201]
[1720670971580,14.9803672,3088.6,3088.5,2.201]
[1720670972293,11.64098097,3088.6,3088.5,2.201]